[Event "Titled Tuesday Blitz November 08 Early 2022"]
[White "Jeet, Jain"]
[Black "Boros, Denes"]
[WhiteFideId "5073022"]
[BlackFideId "722340"]
[WhiteElo "2067"]
[BlackElo "2464"]
[Result "0-1"]
[Round "06"]
[TimeControl "180+1"]
[Date "2022.11.09"]
[WhiteClock "0:00:14"]
[BlackClock "0:00:23"]

1. Nf3 {[%clk 0:03:00]}  Nf6 {[%clk 0:02:59]} 2. b3 {[%clk 0:03:00]}  a5 {[%clk 0:02:58]} 3. a4 {[%clk 0:02:59]}  g6 {[%clk 0:02:56]} 4. Bb2 {[%clk 0:03:00]}  Bg7 {[%clk 0:02:57]} 5. d4 {[%clk 0:02:59]}  b6 {[%clk 0:02:56]} 6. g3 {[%clk 0:03:00]}  Bb7 {[%clk 0:02:56]} 7. Bg2 {[%clk 0:03:00]}  d6 {[%clk 0:02:57]} 8. O-O {[%clk 0:03:01]}  Nbd7 {[%clk 0:02:57]} 9. c4 {[%clk 0:03:01]}  O-O {[%clk 0:02:56]} 10. Re1 {[%clk 0:02:59]}  e5 {[%clk 0:02:55]} 11. dxe5 {[%clk 0:02:57]}  Ng4 {[%clk 0:02:55]} 12. Nc3 {[%clk 0:02:55]}  dxe5 {[%clk 0:02:48]} 13. h3 {[%clk 0:02:52]}  Nh6 {[%clk 0:02:47]} 14. Nd5 {[%clk 0:02:48]}  Re8 {[%clk 0:02:44]} 15. e4 {[%clk 0:02:47]}  Nc5 {[%clk 0:02:43]} 16. Ba3 {[%clk 0:02:40]}  c6 {[%clk 0:02:41]} 17. Nc3 {[%clk 0:02:24]}  Qxd1 {[%clk 0:02:25]} 18. Raxd1 {[%clk 0:02:25]}  Nxb3 {[%clk 0:02:26]} 19. Rb1 {[%clk 0:02:20]}  Nd4 {[%clk 0:02:26]} 20. Rxb6 {[%clk 0:02:16]}  Ba6 {[%clk 0:02:26]} 21. c5 {[%clk 0:02:06]}  Nc2 {[%clk 0:02:26]} 22. Bc1 {[%clk 0:01:54]}  Nxe1 {[%clk 0:02:22]} 23. Nxe1 {[%clk 0:01:55]}  f6 {[%clk 0:02:08]} 24. Rxc6 {[%clk 0:01:51]}  Rec8 {[%clk 0:02:07]} 25. Rxc8+ {[%clk 0:01:41]}  Rxc8 {[%clk 0:02:08]} 26. Be3 {[%clk 0:01:41]}  Bf8 {[%clk 0:02:09]} 27. Nd5 {[%clk 0:01:40]}  Kf7 {[%clk 0:02:06]} 28. Bf1 {[%clk 0:01:34]}  Bxf1 {[%clk 0:01:52]} 29. Kxf1 {[%clk 0:01:35]}  Ng8 {[%clk 0:01:43]} 30. Nd3 {[%clk 0:01:33]}  Ne7 {[%clk 0:01:43]} 31. Nb6 {[%clk 0:01:32]}  Rd8 {[%clk 0:01:37]} 32. Ke2 {[%clk 0:01:31]}  Ke6 {[%clk 0:01:37]} 33. Nb2 {[%clk 0:01:10]}  Nc6 {[%clk 0:01:34]} 34. f4 {[%clk 0:01:08]}  Nd4+ {[%clk 0:01:33]} 35. Kf2 {[%clk 0:01:06]}  Bxc5 {[%clk 0:01:33]} 36. N6c4 {[%clk 0:01:03]}  Rb8 {[%clk 0:01:20]} 37. Nd3 {[%clk 0:01:02]}  Bb4 {[%clk 0:01:17]} 38. fxe5 {[%clk 0:01:01]}  fxe5 {[%clk 0:01:18]} 39. Ndxe5 {[%clk 0:00:58]}  Nb3 {[%clk 0:01:15]} 40. Nd3 {[%clk 0:00:53]}  Rc8 {[%clk 0:01:13]} 41. Nf4+ {[%clk 0:00:52]}  Kf7 {[%clk 0:01:09]} 42. Ne5+ {[%clk 0:00:51]}  Ke8 {[%clk 0:01:09]} 43. Nd5 {[%clk 0:00:51]}  Bd6 {[%clk 0:01:04]} 44. Ng4 {[%clk 0:00:49]}  Kf7 {[%clk 0:01:00]} 45. e5 {[%clk 0:00:48]}  Bf8 {[%clk 0:00:55]} 46. Nf4 {[%clk 0:00:43]}  Nc5 {[%clk 0:00:51]} 47. Nf6 {[%clk 0:00:43]}  Ne6 {[%clk 0:00:46]} 48. N4d5 {[%clk 0:00:38]}  Rc4 {[%clk 0:00:43]} 49. Nb6 {[%clk 0:00:33]}  Rc3 {[%clk 0:00:44]} 50. Bd2 {[%clk 0:00:32]}  Bc5+ {[%clk 0:00:43]} 51. Ke1 {[%clk 0:00:32]}  Rxg3 {[%clk 0:00:40]} 52. Bxa5 {[%clk 0:00:27]}  Rxh3 {[%clk 0:00:33]} 53. Nbd7 {[%clk 0:00:24]}  Bd4 {[%clk 0:00:28]} 54. Bd2 {[%clk 0:00:21]}  g5 {[%clk 0:00:26]} 55. a5 {[%clk 0:00:20]}  g4 {[%clk 0:00:25]} 56. a6 {[%clk 0:00:20]}  g3 {[%clk 0:00:24]} 57. Kf1 {[%clk 0:00:20]}  Rh2 {[%clk 0:00:24]} 58. Ng4 {[%clk 0:00:18]}  g2+ {[%clk 0:00:24]} 59. Ke2 {[%clk 0:00:19]}  g1=Q+ {[%clk 0:00:24]} 60. Nxh2 {[%clk 0:00:19]}  Qxh2+ {[%clk 0:00:25]} 61. Kd3 {[%clk 0:00:20]}  Ba7 {[%clk 0:00:24]} 62. Bc3 {[%clk 0:00:17]}  Qh3+ {[%clk 0:00:25]} 63. Kc4 {[%clk 0:00:18]}  Qf5 {[%clk 0:00:24]} 64. Nf6 {[%clk 0:00:16]}  h5 {[%clk 0:00:23]} 65. Nd5 {[%clk 0:00:14]}  Qe4+ {[%clk 0:00:23]} 0-1


[Site "https://www.chess.com"]

[Event "Titled Tuesday Blitz November 08 Early 2022"]
[White "Jones, Gawain C B"]
[Black "Harshavardhan G B"]
[WhiteFideId "409561"]
[BlackFideId "25059009"]
[WhiteElo "2657"]
[BlackElo "2333"]
[Result "1/2-1/2"]
[Round "06"]
[TimeControl "180+1"]
[Date "2022.11.08"]
[WhiteClock "0:00:10"]
[BlackClock "0:00:14"]

1. c4 {[%clk 0:03:00]}  Nf6 {[%clk 0:02:56]} 2. d4 {[%clk 0:03:00]}  g6 {[%clk 0:02:57]} 3. Nc3 {[%clk 0:03:00]}  Bg7 {[%clk 0:02:57]} 4. e4 {[%clk 0:03:00]}  d6 {[%clk 0:02:58]} 5. h3 {[%clk 0:02:59]}  O-O {[%clk 0:02:57]} 6. Be3 {[%clk 0:02:59]}  e5 {[%clk 0:02:57]} 7. d5 {[%clk 0:03:00]}  a5 {[%clk 0:02:56]} 8. g4 {[%clk 0:03:00]}  Na6 {[%clk 0:02:56]} 9. Nge2 {[%clk 0:03:00]}  Nc5 {[%clk 0:02:56]} 10. Ng3 {[%clk 0:03:01]}  c6 {[%clk 0:02:55]} 11. g5 {[%clk 0:02:53]}  Nfd7 {[%clk 0:02:42]} 12. h4 {[%clk 0:02:49]}  cxd5 {[%clk 0:02:39]} 13. exd5 {[%clk 0:02:46]}  f5 {[%clk 0:02:38]} 14. gxf6 {[%clk 0:02:45]}  Nxf6 {[%clk 0:02:35]} 15. h5 {[%clk 0:02:40]}  Ng4 {[%clk 0:02:30]} 16. Bxc5 {[%clk 0:02:02]}  dxc5 {[%clk 0:02:28]} 17. Nce4 {[%clk 0:02:03]}  Qb6 {[%clk 0:02:01]} 18. hxg6 {[%clk 0:01:36]}  Qxb2 {[%clk 0:01:45]} 19. gxh7+ {[%clk 0:01:25]}  Kh8 {[%clk 0:01:42]} 20. Rb1 {[%clk 0:01:19]}  Qxa2 {[%clk 0:01:42]} 21. Be2 {[%clk 0:01:16]}  Nf6 {[%clk 0:01:17]} 22. Nc3 {[%clk 0:01:11]}  Qa3 {[%clk 0:01:08]} 23. Rb3 {[%clk 0:01:11]}  Qb4 {[%clk 0:01:08]} 24. d6 {[%clk 0:00:59]}  Be6 {[%clk 0:01:06]} 25. Rxb4 {[%clk 0:00:58]}  cxb4 {[%clk 0:00:53]} 26. Na4 {[%clk 0:00:48]}  Nd7 {[%clk 0:00:49]} 27. Ne4 {[%clk 0:00:45]}  Rac8 {[%clk 0:00:46]} 28. Ng5 {[%clk 0:00:39]}  Bf5 {[%clk 0:00:25]} 29. Qd5 {[%clk 0:00:38]}  Bg6 {[%clk 0:00:22]} 30. Qe6 {[%clk 0:00:32]}  Nf6 {[%clk 0:00:21]} 31. d7 {[%clk 0:00:25]}  Rcd8 {[%clk 0:00:21]} 32. Nb6 {[%clk 0:00:21]}  b3 {[%clk 0:00:20]} 33. Kd2 {[%clk 0:00:18]}  b2 {[%clk 0:00:20]} 34. Bd3 {[%clk 0:00:18]}  e4 {[%clk 0:00:21]} 35. Bb1 {[%clk 0:00:17]}  a4 {[%clk 0:00:18]} 36. Rd1 {[%clk 0:00:11]}  a3 {[%clk 0:00:18]} 37. Ke1 {[%clk 0:00:11]}  Bh5 {[%clk 0:00:15]} 38. Rd2 {[%clk 0:00:10]}  Bg4 {[%clk 0:00:15]} 39. Nf7+ {[%clk 0:00:09]}  Kxh7 {[%clk 0:00:15]} 40. Bxe4+ {[%clk 0:00:07]}  Nxe4 {[%clk 0:00:09]} 41. Qxe4+ {[%clk 0:00:06]}  Kg8 {[%clk 0:00:10]} 42. Nxd8 {[%clk 0:00:06]}  a2 {[%clk 0:00:10]} 43. Qxg4 {[%clk 0:00:03]}  b1=Q+ {[%clk 0:00:10]} 44. Rd1 {[%clk 0:00:03]}  Qxd1+ {[%clk 0:00:10]} 45. Qxd1 {[%clk 0:00:03]}  Rxd8 {[%clk 0:00:10]} 46. Qd5+ {[%clk 0:00:03]}  Kf8 {[%clk 0:00:09]} 47. Qf5+ {[%clk 0:00:04]}  Kg8 {[%clk 0:00:09]} 48. Qe6+ {[%clk 0:00:04]}  Kh7 {[%clk 0:00:09]} 49. Qh3+ {[%clk 0:00:04]}  Kg8 {[%clk 0:00:09]} 50. Qe6+ {[%clk 0:00:04]}  Kh7 {[%clk 0:00:09]} 51. Qe4+ {[%clk 0:00:05]}  Kg8 {[%clk 0:00:09]} 52. Qe8+ {[%clk 0:00:05]}  Rxe8+ {[%clk 0:00:09]} 53. dxe8=Q+ {[%clk 0:00:05]}  Kh7 {[%clk 0:00:10]} 54. Qh5+ {[%clk 0:00:05]}  Kg8 {[%clk 0:00:10]} 55. Qd5+ {[%clk 0:00:05]}  Kh8 {[%clk 0:00:09]} 56. Qh1+ {[%clk 0:00:04]}  Kg8 {[%clk 0:00:09]} 57. Qd5+ {[%clk 0:00:04]}  Kh8 {[%clk 0:00:09]} 58. Qd8+ {[%clk 0:00:04]}  Kh7 {[%clk 0:00:09]} 59. Qh4+ {[%clk 0:00:04]}  Kg8 {[%clk 0:00:09]} 60. Qd8+ {[%clk 0:00:04]}  Kh7 {[%clk 0:00:10]} 61. Qd3+ {[%clk 0:00:04]}  Kh8 {[%clk 0:00:09]} 62. Qa3 {[%clk 0:00:02]}  a1=Q+ {[%clk 0:00:09]} 63. Qxa1 {[%clk 0:00:03]}  Bxa1 {[%clk 0:00:09]} 64. Ke2 {[%clk 0:00:03]}  Kg7 {[%clk 0:00:09]} 65. Kd3 {[%clk 0:00:03]}  Kf6 {[%clk 0:00:09]} 66. Ke4 {[%clk 0:00:04]}  Ke6 {[%clk 0:00:09]} 67. f4 {[%clk 0:00:04]}  Kd6 {[%clk 0:00:09]} 68. Na4 {[%clk 0:00:01]}  Kc6 {[%clk 0:00:09]} 69. f5 {[%clk 0:00:02]}  Bf6 {[%clk 0:00:09]} 70. Kd3 {[%clk 0:00:01]}  b5 {[%clk 0:00:09]} 71. Nc3 {[%clk 0:00:01]}  bxc4+ {[%clk 0:00:07]} 72. Kxc4 {[%clk 0:00:02]}  Bxc3 {[%clk 0:00:08]} 73. Kxc3 {[%clk 0:00:02]}  Kd6 {[%clk 0:00:09]} 74. Kd4 {[%clk 0:00:02]}  Ke7 {[%clk 0:00:09]} 75. Ke5 {[%clk 0:00:03]}  Kf7 {[%clk 0:00:10]} 76. Ke4 {[%clk 0:00:04]}  Kf6 {[%clk 0:00:10]} 77. Kf4 {[%clk 0:00:04]}  Kf7 {[%clk 0:00:11]} 78. Kg5 {[%clk 0:00:05]}  Kg7 {[%clk 0:00:11]} 79. f6+ {[%clk 0:00:06]}  Kf7 {[%clk 0:00:12]} 80. Kf5 {[%clk 0:00:07]}  Kf8 {[%clk 0:00:12]} 81. Ke5 {[%clk 0:00:07]}  Kf7 {[%clk 0:00:13]} 82. Kf5 {[%clk 0:00:07]}  Kf8 {[%clk 0:00:13]} 83. Ke6 {[%clk 0:00:08]}  Ke8 {[%clk 0:00:13]} 84. Ke5 {[%clk 0:00:09]}  Kf7 {[%clk 0:00:14]} 85. Kf5 {[%clk 0:00:10]} 1/2-1/2


[Site "https://www.chess.com"]

[Event "Titled Tuesday Blitz November 08 Early 2022"]
[White "Jumabayev, Rinat"]
[Black "Paravyan, David"]
[WhiteFideId "13702661"]
[BlackFideId "4194985"]
[WhiteElo "2561"]
[BlackElo "2546"]
[Result "0-1"]
[Round "06"]
[TimeControl "180+1"]
[Date "2022.11.08"]
[WhiteClock "0:00:03"]
[BlackClock "0:00:12"]

1. d4 {[%clk 0:03:00]}  Nf6 {[%clk 0:02:58]} 2. Bf4 {[%clk 0:03:00]}  g6 {[%clk 0:02:58]} 3. e3 {[%clk 0:02:59]}  Bg7 {[%clk 0:02:58]} 4. Nf3 {[%clk 0:03:00]}  O-O {[%clk 0:02:58]} 5. Be2 {[%clk 0:03:00]}  d6 {[%clk 0:02:58]} 6. O-O {[%clk 0:03:01]}  Nh5 {[%clk 0:02:58]} 7. Bg5 {[%clk 0:03:00]}  h6 {[%clk 0:02:58]} 8. Bh4 {[%clk 0:03:00]}  c5 {[%clk 0:02:54]} 9. Ne1 {[%clk 0:02:40]}  Nf6 {[%clk 0:02:49]} 10. Nd2 {[%clk 0:02:32]}  cxd4 {[%clk 0:02:49]} 11. exd4 {[%clk 0:02:32]}  Nc6 {[%clk 0:02:49]} 12. c3 {[%clk 0:02:33]}  e5 {[%clk 0:02:49]} 13. dxe5 {[%clk 0:02:12]}  dxe5 {[%clk 0:02:49]} 14. Nc4 {[%clk 0:02:12]}  g5 {[%clk 0:02:44]} 15. Bg3 {[%clk 0:02:09]}  Ne4 {[%clk 0:02:44]} 16. Bf3 {[%clk 0:02:01]}  Nxg3 {[%clk 0:02:38]} 17. hxg3 {[%clk 0:02:00]}  Be6 {[%clk 0:02:37]} 18. Qe2 {[%clk 0:01:46]}  Rc8 {[%clk 0:02:26]} 19. Bxc6 {[%clk 0:01:30]}  Rxc6 {[%clk 0:02:26]} 20. Nxe5 {[%clk 0:01:20]}  Bxe5 {[%clk 0:02:26]} 21. Qxe5 {[%clk 0:01:21]}  Bc4 {[%clk 0:02:27]} 22. Nf3 {[%clk 0:01:21]}  Bxf1 {[%clk 0:02:26]} 23. Rxf1 {[%clk 0:01:22]}  Re8 {[%clk 0:02:22]} 24. Qf5 {[%clk 0:01:19]}  Qf6 {[%clk 0:02:17]} 25. Qd3 {[%clk 0:01:19]}  Rce6 {[%clk 0:02:05]} 26. Qd5 {[%clk 0:01:11]}  b6 {[%clk 0:01:45]} 27. g4 {[%clk 0:01:06]}  Qf4 {[%clk 0:01:40]} 28. Qd4 {[%clk 0:00:46]}  Qxd4 {[%clk 0:01:34]} 29. Nxd4 {[%clk 0:00:47]}  Re1 {[%clk 0:01:34]} 30. f3 {[%clk 0:00:47]}  Kh7 {[%clk 0:01:29]} 31. Kf2 {[%clk 0:00:46]}  Rxf1+ {[%clk 0:01:29]} 32. Kxf1 {[%clk 0:00:47]}  Kg6 {[%clk 0:01:30]} 33. Kf2 {[%clk 0:00:48]}  h5 {[%clk 0:01:21]} 34. gxh5+ {[%clk 0:00:48]}  Kxh5 {[%clk 0:01:22]} 35. g4+ {[%clk 0:00:48]}  Kg6 {[%clk 0:01:22]} 36. a3 {[%clk 0:00:48]}  Kf6 {[%clk 0:01:19]} 37. Nb5 {[%clk 0:00:44]}  Re7 {[%clk 0:01:13]} 38. Nd4 {[%clk 0:00:37]}  a6 {[%clk 0:01:00]} 39. Nc6 {[%clk 0:00:34]}  Rc7 {[%clk 0:00:55]} 40. Nb4 {[%clk 0:00:32]}  Rd7 {[%clk 0:00:55]} 41. Ke3 {[%clk 0:00:32]}  a5 {[%clk 0:00:54]} 42. Nc6 {[%clk 0:00:31]}  Ke6 {[%clk 0:00:52]} 43. Nd4+ {[%clk 0:00:31]}  Kd5 {[%clk 0:00:52]} 44. Kd3 {[%clk 0:00:31]}  f6 {[%clk 0:00:49]} 45. a4 {[%clk 0:00:32]}  Rh7 {[%clk 0:00:49]} 46. b4 {[%clk 0:00:26]}  axb4 {[%clk 0:00:44]} 47. cxb4 {[%clk 0:00:27]}  Rh1 {[%clk 0:00:44]} 48. Nc2 {[%clk 0:00:10]}  Rd1+ {[%clk 0:00:41]} 49. Ke2 {[%clk 0:00:10]}  Rb1 {[%clk 0:00:38]} 50. a5 {[%clk 0:00:08]}  bxa5 {[%clk 0:00:36]} 51. bxa5 {[%clk 0:00:09]}  Rb8 {[%clk 0:00:29]} 52. a6 {[%clk 0:00:08]}  Ra8 {[%clk 0:00:27]} 53. Kd3 {[%clk 0:00:08]}  Kc5 {[%clk 0:00:16]} 54. Ke4 {[%clk 0:00:03]}  Rxa6 {[%clk 0:00:16]} 55. Ne1 {[%clk 0:00:02]}  Re6+ {[%clk 0:00:15]} 56. Kf5 {[%clk 0:00:03]}  Rxe1 {[%clk 0:00:16]} 57. Kxf6 {[%clk 0:00:03]}  Rf1 {[%clk 0:00:12]} 0-1


[Site "https://www.chess.com"]

[Event "Titled Tuesday Blitz November 08 Early 2022"]
[White "Khaliun, Batnasan"]
[Black "Hasangatin, Ramil"]
[WhiteFideId "4906276"]
[BlackFideId "4122160"]
[WhiteElo "1752"]
[BlackElo "2362"]
[Result "0-1"]
[Round "06"]
[TimeControl "180+1"]
[Date "2022.11.09"]
[WhiteClock "0:00:06"]
[BlackClock "0:02:13"]

1. d4 {[%clk 0:03:00]}  d6 {[%clk 0:02:59]} 2. c4 {[%clk 0:02:59]}  e5 {[%clk 0:02:59]} 3. dxe5 {[%clk 0:02:59]}  dxe5 {[%clk 0:03:00]} 4. Qxd8+ {[%clk 0:02:59]}  Kxd8 {[%clk 0:03:00]} 5. Nf3 {[%clk 0:02:50]}  f6 {[%clk 0:03:00]} 6. Nc3 {[%clk 0:02:39]}  Be6 {[%clk 0:03:00]} 7. e3 {[%clk 0:02:37]}  Nd7 {[%clk 0:02:59]} 8. Ke2 {[%clk 0:02:34]}  c6 {[%clk 0:02:58]} 9. Ke1 {[%clk 0:02:28]}  Kc7 {[%clk 0:02:57]} 10. Be2 {[%clk 0:02:27]}  a5 {[%clk 0:02:56]} 11. b3 {[%clk 0:02:10]}  Bb4 {[%clk 0:02:54]} 12. Bd2 {[%clk 0:02:09]}  Nc5 {[%clk 0:02:55]} 13. h3 {[%clk 0:01:53]}  Rd8 {[%clk 0:02:52]} 14. g4 {[%clk 0:01:50]}  Rxd2 {[%clk 0:02:50]} 15. Nxd2 {[%clk 0:01:15]}  Bxc3 {[%clk 0:02:49]} 16. Rc1 {[%clk 0:01:14]}  Bb4 {[%clk 0:02:49]} 17. Rc2 {[%clk 0:01:09]}  Ne4 {[%clk 0:02:49]} 18. f3 {[%clk 0:00:53]}  Nxd2 {[%clk 0:02:43]} 19. Rxd2 {[%clk 0:00:52]}  Ne7 {[%clk 0:02:40]} 20. Kd1 {[%clk 0:00:38]}  Bxd2 {[%clk 0:02:40]} 21. Kxd2 {[%clk 0:00:37]}  Rd8+ {[%clk 0:02:40]} 22. Kc2 {[%clk 0:00:36]}  Bf7 {[%clk 0:02:34]} 23. Kc3 {[%clk 0:00:30]}  Nc8 {[%clk 0:02:32]} 24. Bd3 {[%clk 0:00:21]}  Bg6 {[%clk 0:02:29]} 25. Be2 {[%clk 0:00:19]}  Nb6 {[%clk 0:02:28]} 26. a4 {[%clk 0:00:17]}  Nd7 {[%clk 0:02:28]} 27. h4 {[%clk 0:00:14]}  h6 {[%clk 0:02:26]} 28. h5 {[%clk 0:00:13]}  Bh7 {[%clk 0:02:21]} 29. Rg1 {[%clk 0:00:13]}  Nc5 {[%clk 0:02:20]} 30. Rc1 {[%clk 0:00:10]}  Nd3 {[%clk 0:02:13]} 31. Rf1 {[%clk 0:00:10]}  Nb4 {[%clk 0:02:12]} 32. Re1 {[%clk 0:00:08]}  Na2+ {[%clk 0:02:12]} 33. Kb2 {[%clk 0:00:08]}  Rd2+ {[%clk 0:02:13]} 34. Ka3 {[%clk 0:00:06]}  Nc3 {[%clk 0:02:13]} 35. Bf1 {[%clk 0:00:06]}  Ra2# {[%clk 0:02:13]} 0-1


[Site "https://www.chess.com"]

[Event "Titled Tuesday Blitz November 08 Early 2022"]
[White "Khanin, Semen"]
[Black "Vidruska, Renate"]
[WhiteFideId "4111990"]
[BlackFideId "11601841"]
[WhiteElo "2458"]
[BlackElo "1877"]
[Result "1-0"]
[Round "06"]
[TimeControl "180+1"]
[Date "2022.11.09"]
[WhiteClock "0:01:36"]
[BlackClock "0:00:14"]

1. c4 {[%clk 0:02:52]}  Nf6 {[%clk 0:02:52]} 2. Nc3 {[%clk 0:02:50]}  e6 {[%clk 0:02:52]} 3. e4 {[%clk 0:02:51]}  d5 {[%clk 0:02:52]} 4. cxd5 {[%clk 0:02:51]}  exd5 {[%clk 0:02:51]} 5. e5 {[%clk 0:02:52]}  Ne4 {[%clk 0:02:52]} 6. Nf3 {[%clk 0:02:50]}  Nc6 {[%clk 0:02:39]} 7. h3 {[%clk 0:02:48]}  Bc5 {[%clk 0:02:39]} 8. d4 {[%clk 0:02:48]}  Bb4 {[%clk 0:02:37]} 9. Qc2 {[%clk 0:02:43]}  Bf5 {[%clk 0:02:31]} 10. Bd3 {[%clk 0:02:43]}  Nxc3 {[%clk 0:02:30]} 11. bxc3 {[%clk 0:02:43]}  Bxd3 {[%clk 0:02:31]} 12. Qxd3 {[%clk 0:02:44]}  Be7 {[%clk 0:02:29]} 13. O-O {[%clk 0:02:44]}  O-O {[%clk 0:02:29]} 14. Nh2 {[%clk 0:02:41]}  Na5 {[%clk 0:02:29]} 15. f4 {[%clk 0:02:41]}  Nc4 {[%clk 0:02:25]} 16. f5 {[%clk 0:02:41]}  f6 {[%clk 0:02:18]} 17. Bf4 {[%clk 0:02:36]}  c5 {[%clk 0:02:12]} 18. Rae1 {[%clk 0:02:34]}  cxd4 {[%clk 0:01:52]} 19. cxd4 {[%clk 0:02:34]}  Qb6 {[%clk 0:01:42]} 20. Kh1 {[%clk 0:02:31]}  Rad8 {[%clk 0:01:16]} 21. Ng4 {[%clk 0:02:29]}  Kh8 {[%clk 0:01:00]} 22. exf6 {[%clk 0:02:28]}  Bxf6 {[%clk 0:01:00]} 23. Nxf6 {[%clk 0:02:25]}  Qxf6 {[%clk 0:00:59]} 24. Be5 {[%clk 0:02:17]}  Qf7 {[%clk 0:00:45]} 25. g4 {[%clk 0:02:04]}  Rde8 {[%clk 0:00:45]} 26. g5 {[%clk 0:01:54]}  Nxe5 {[%clk 0:00:42]} 27. dxe5 {[%clk 0:01:54]}  Qh5 {[%clk 0:00:42]} 28. Qg3 {[%clk 0:01:51]}  h6 {[%clk 0:00:36]} 29. gxh6 {[%clk 0:01:43]}  Qxh6 {[%clk 0:00:34]} 30. Rf4 {[%clk 0:01:42]}  Qc6 {[%clk 0:00:28]} 31. Rg1 {[%clk 0:01:40]}  Re7 {[%clk 0:00:16]} 32. f6 {[%clk 0:01:36]}  gxf6 {[%clk 0:00:14]} 33. Rh4+ {[%clk 0:01:36]}  Rh7 {[%clk 0:00:14]} 34. Qg7# {[%clk 0:01:36]} 1-0


[Site "https://www.chess.com"]

[Event "Titled Tuesday Blitz November 08 Early 2022"]
[White "Kirillov, Dmitry"]
[Black "Fernandez Siles, Luis"]
[WhiteFideId "34180572"]
[BlackFideId "2209420"]
[WhiteElo "2095"]
[BlackElo "2186"]
[Result "0-1"]
[Round "06"]
[TimeControl "180+1"]
[Date "2022.11.09"]
[WhiteClock "0:00:03"]
[BlackClock "0:00:04"]

1. e4 {[%clk 0:03:00]}  c5 {[%clk 0:02:59]} 2. Nc3 {[%clk 0:03:00]}  Nc6 {[%clk 0:02:59]} 3. f4 {[%clk 0:03:00]}  g6 {[%clk 0:02:58]} 4. Nf3 {[%clk 0:03:01]}  Bg7 {[%clk 0:02:58]} 5. Bc4 {[%clk 0:03:02]}  e6 {[%clk 0:02:56]} 6. e5 {[%clk 0:03:02]}  d5 {[%clk 0:02:16]} 7. exd6 {[%clk 0:03:03]}  Nf6 {[%clk 0:02:12]} 8. Ne5 {[%clk 0:02:37]}  O-O {[%clk 0:02:01]} 9. d3 {[%clk 0:02:27]}  Nd4 {[%clk 0:01:52]} 10. O-O {[%clk 0:02:20]}  Qxd6 {[%clk 0:01:51]} 11. a4 {[%clk 0:02:11]}  b6 {[%clk 0:01:35]} 12. Be3 {[%clk 0:02:09]}  Bb7 {[%clk 0:01:30]} 13. Nb5 {[%clk 0:02:06]}  Nxb5 {[%clk 0:01:25]} 14. axb5 {[%clk 0:02:07]}  Nd5 {[%clk 0:01:22]} 15. Bd2 {[%clk 0:01:29]}  Nxf4 {[%clk 0:01:18]} 16. Bxf4 {[%clk 0:01:03]}  Bxe5 {[%clk 0:01:17]} 17. Bh6 {[%clk 0:00:57]}  Qd4+ {[%clk 0:00:44]} 18. Rf2 {[%clk 0:00:37]}  Bxh2+ {[%clk 0:00:16]} 19. Kf1 {[%clk 0:00:32]}  Rfd8 {[%clk 0:00:15]} 20. Bg5 {[%clk 0:00:24]}  Rd7 {[%clk 0:00:12]} 21. Qd2 {[%clk 0:00:13]}  Bg3 {[%clk 0:00:11]} 22. Re2 {[%clk 0:00:08]}  Qg4 {[%clk 0:00:10]} 23. Qe3 {[%clk 0:00:02]}  Bh4 {[%clk 0:00:04]} 24. Bxh4 {[%clk 0:00:02]}  Qxh4 {[%clk 0:00:04]} 25. Qf2 {[%clk 0:00:03]}  Qh1+ {[%clk 0:00:04]} 26. Qg1 {[%clk 0:00:02]}  Qh4 {[%clk 0:00:04]} 27. Qf2 {[%clk 0:00:02]}  Qh1+ {[%clk 0:00:04]} 28. Qg1 {[%clk 0:00:03]}  Qh5 {[%clk 0:00:04]} 29. Rf2 {[%clk 0:00:03]}  Rd4 {[%clk 0:00:04]} 30. c3 {[%clk 0:00:03]}  Rh4 {[%clk 0:00:04]} 0-1


[Site "https://www.chess.com"]

[Event "Titled Tuesday Blitz November 08 Early 2022"]
[White "Kopylov, Alexander A."]
[Black "Putnam, Liam"]
[WhiteFideId "4164857"]
[BlackFideId "30938279"]
[WhiteElo "2436"]
[BlackElo "2082"]
[Result "1/2-1/2"]
[Round "06"]
[TimeControl "180+1"]
[Date "2022.11.08"]
[WhiteClock "0:00:19"]
[BlackClock "0:00:07"]

1. e4 {[%clk 0:03:00]}  c5 {[%clk 0:02:58]} 2. Nf3 {[%clk 0:03:00]}  d6 {[%clk 0:02:58]} 3. Bb5+ {[%clk 0:03:00]}  Bd7 {[%clk 0:02:57]} 4. Bxd7+ {[%clk 0:02:59]}  Qxd7 {[%clk 0:02:57]} 5. O-O {[%clk 0:03:00]}  Nf6 {[%clk 0:02:56]} 6. e5 {[%clk 0:03:00]}  dxe5 {[%clk 0:02:56]} 7. Nxe5 {[%clk 0:03:00]}  Qc7 {[%clk 0:02:57]} 8. Re1 {[%clk 0:02:59]}  e6 {[%clk 0:02:57]} 9. Nc3 {[%clk 0:02:58]}  a6 {[%clk 0:02:55]} 10. d4 {[%clk 0:02:57]}  Bd6 {[%clk 0:02:51]} 11. Bf4 {[%clk 0:02:54]}  cxd4 {[%clk 0:02:42]} 12. Qxd4 {[%clk 0:02:54]}  Nc6 {[%clk 0:02:43]} 13. Nxc6 {[%clk 0:02:33]}  Bxf4 {[%clk 0:02:42]} 14. Ne5 {[%clk 0:02:31]}  Bxe5 {[%clk 0:02:42]} 15. Qxe5 {[%clk 0:02:30]}  Qxe5 {[%clk 0:02:36]} 16. Rxe5 {[%clk 0:02:31]}  O-O-O {[%clk 0:02:36]} 17. f3 {[%clk 0:02:20]}  Rd2 {[%clk 0:02:35]} 18. Re2 {[%clk 0:02:19]}  Rhd8 {[%clk 0:02:34]} 19. Kf2 {[%clk 0:02:18]}  b5 {[%clk 0:02:30]} 20. Ke1 {[%clk 0:02:17]}  R2d4 {[%clk 0:02:28]} 21. Rd1 {[%clk 0:02:15]}  Rxd1+ {[%clk 0:02:23]} 22. Nxd1 {[%clk 0:02:16]}  Nd5 {[%clk 0:02:23]} 23. g3 {[%clk 0:02:15]}  Kc7 {[%clk 0:02:21]} 24. Ne3 {[%clk 0:02:12]}  Nb4 {[%clk 0:02:20]} 25. a3 {[%clk 0:02:12]}  Nc6 {[%clk 0:02:20]} 26. Rd2 {[%clk 0:02:08]}  Rxd2 {[%clk 0:02:15]} 27. Kxd2 {[%clk 0:02:08]}  Nd4 {[%clk 0:02:16]} 28. f4 {[%clk 0:02:03]}  Nf3+ {[%clk 0:02:16]} 29. Ke2 {[%clk 0:02:04]}  Nxh2 {[%clk 0:02:17]} 30. g4 {[%clk 0:02:03]}  Kd7 {[%clk 0:01:27]} 31. Kf2 {[%clk 0:01:59]}  f5 {[%clk 0:01:26]} 32. gxf5 {[%clk 0:01:52]}  exf5 {[%clk 0:01:27]} 33. Nxf5 {[%clk 0:01:53]}  Ng4+ {[%clk 0:01:26]} 34. Kf3 {[%clk 0:01:52]}  Nf6 {[%clk 0:01:21]} 35. Nxg7 {[%clk 0:01:51]}  Kd6 {[%clk 0:01:13]} 36. Nf5+ {[%clk 0:01:51]}  Ke6 {[%clk 0:01:12]} 37. Nh6 {[%clk 0:01:50]}  a5 {[%clk 0:01:11]} 38. Ng4 {[%clk 0:01:30]}  Nd7 {[%clk 0:00:41]} 39. Ke4 {[%clk 0:01:27]}  Nc5+ {[%clk 0:00:41]} 40. Kd4 {[%clk 0:01:27]}  Nd7 {[%clk 0:00:31]} 41. Ne3 {[%clk 0:01:13]}  h5 {[%clk 0:00:31]} 42. b3 {[%clk 0:01:05]}  h4 {[%clk 0:00:30]} 43. Ke4 {[%clk 0:01:06]}  b4 {[%clk 0:00:19]} 44. axb4 {[%clk 0:00:59]}  axb4 {[%clk 0:00:20]} 45. Kf3 {[%clk 0:00:55]}  Nf6 {[%clk 0:00:18]} 46. Ng2 {[%clk 0:00:43]}  h3 {[%clk 0:00:16]} 47. Ne3 {[%clk 0:00:43]}  Nd5 {[%clk 0:00:14]} 48. Ng4 {[%clk 0:00:33]}  Kf5 {[%clk 0:00:15]} 49. Nh6+ {[%clk 0:00:26]}  Kg6 {[%clk 0:00:15]} 50. Ng4 {[%clk 0:00:25]}  Kf5 {[%clk 0:00:15]} 51. Nf2 {[%clk 0:00:19]}  Nxf4 {[%clk 0:00:13]} 52. Kg3 {[%clk 0:00:19]}  Ne2+ {[%clk 0:00:09]} 53. Kxh3 {[%clk 0:00:20]}  Nd4 {[%clk 0:00:10]} 54. Kg3 {[%clk 0:00:20]}  Nxc2 {[%clk 0:00:09]} 55. Kf3 {[%clk 0:00:21]}  Nd4+ {[%clk 0:00:09]} 56. Ke3 {[%clk 0:00:21]}  Nxb3 {[%clk 0:00:10]} 57. Kd3 {[%clk 0:00:21]}  Na5 {[%clk 0:00:10]} 58. Kd4 {[%clk 0:00:19]}  Ke6 {[%clk 0:00:07]} 59. Nd3 {[%clk 0:00:19]}  b3 {[%clk 0:00:07]} 60. Kc3 {[%clk 0:00:19]}  Kd5 {[%clk 0:00:08]} 61. Nc1 {[%clk 0:00:19]}  b2 {[%clk 0:00:07]} 62. Kxb2 {[%clk 0:00:19]} 1/2-1/2


[Site "https://www.chess.com"]